fUSD/lending_fUSD_20251211
["ID","MTS","AMOUNT","RATE_DAILY","PERIOD"]
[398272231,1765488907534,-150.0,0.00040548,30]
[398272232,1765488907594,-1004.0,0.0004055,120]
[398272233,1765488907656,-975.56133402,0.00040612,28]
[398272234,1765488907715,-154.93216666,0.00040623,30]
[398272235,1765488907775,-500.0,0.00040684,120]
[398272236,1765488907839,-568.24543971,0.00040684,120]
[398272237,1765488907899,-500.0,0.00040684,120]
[398272238,1765488907959,-500.0,0.00040684,120]
[398272239,1765488908019,-334.84039979,0.00040684,120]
[398272240,1765488908088,-500.0,0.00040685,30]
[398272241,1765488908151,-500.0,0.00040685,30]
[398272242,1765488908212,-500.0,0.00040685,30]
[398272243,1765488908274,-500.0,0.00040685,30]
[398272244,1765488908337,-190.89960766,0.00040685,30]
[398272245,1765488908400,-151.0,0.000407,120]
[398272246,1765488908460,-228.66399,0.000407,120]
[398272247,1765488908522,-151.0,0.000407,30]
[398272248,1765488908584,-536.94810969,0.00040742,120]
[398272249,1765488908646,-128950.45929692,0.00040798,38]
[398272250,1765488908712,-569.38,0.00040799,30]
[398272251,1765488908772,-687.37,0.00040799,30]
[398272252,1765488908836,-4443.69,0.000408,14]
[398272253,1765488908897,-82484.52103259,0.000408,30]
[398272254,1765488908957,-500.0,0.00040821,120]
[398272255,1765488909018,-500.0,0.00040822,30]
[398272256,1765488909079,-500.0,0.00040822,30]
[398272257,1765488909142,-500.0,0.00040822,30]
[398272258,1765488909205,-500.0,0.00040822,30]
[398272259,1765488909271,-344.21,0.00040848,14]
[398272260,1765488909332,-1074.0,0.00040854,30]
[398272261,1765488909396,-975.56133402,0.00040858,28]
[398272262,1765488909458,-3803.45480848,0.0004088,90]
[398272263,1765488909517,-4540.0,0.0004089,60]
[398272264,1765488909577,-332.42634508,0.000409,120]
[398272265,1765488909649,-253.38531087,0.000409,120]
[398272266,1765488909707,-1644.76217113,0.000409,15]
[398272267,1765488909764,-157.09902982,0.000409,120]
[398272268,1765488909821,-1548.44970798,0.00040941,120]
[398272269,1765488909878,-1649.0,0.00040959,120]
[398272270,1765488909940,-500.0,0.00040959,30]
[398272271,1765488909997,-500.0,0.00040959,30]
[398272272,1765488910057,-500.0,0.00040959,30]
[398272273,1765488910116,-500.0,0.00040959,30]
[398272274,1765488910175,-500.0,0.00040973,30]
[398272275,1765488910233,-500.0,0.00040973,30]
[398272276,1765488910292,-500.0,0.00040973,30]
[398272277,1765488910352,-500.0,0.00040973,30]
[398272278,1765488910413,-500.0,0.00040973,30]
[398272279,1765488910472,-500.0,0.00040973,30]
[398272280,1765488910532,-500.0,0.00040973,30]
[398272281,1765488910592,-500.0,0.00040973,30]
[398272282,1765488910650,-500.0,0.00040973,30]
[398272283,1765488910707,-500.0,0.00040973,30]
[398272284,1765488910764,-500.0,0.00040973,30]
[398272285,1765488910822,-500.0,0.00040973,30]
[398272286,1765488910881,-500.0,0.00040973,30]
[398272287,1765488910943,-500.0,0.00040973,30]
[398272288,1765488911005,-500.0,0.00040973,30]
[398272289,1765488911063,-176.0,0.00040973,30]
[398272290,1765488911124,-154.93216666,0.00040985,30]
[398272291,1765488911183,-211.0,0.00040986,90]
[398272292,1765488911243,-1000.0,0.00040989,120]
[398272293,1765488911305,-4734.83,0.00040998,30]
[398272294,1765488911373,-444.71997537,0.00040998,30]
[398272295,1765488911430,-687.37,0.00040998,30]
[398272296,1765488911489,-687.37,0.00040998,30]
[398272297,1765488911549,-687.37,0.00040998,30]
[398272298,1765488911764,-687.37,0.00040998,30]
[398272299,1765488911835,-687.41552302,0.00040998,30]
[398272300,1765488911898,-500.0,0.00040999,45]
[398272301,1765488911967,-569.38,0.00040999,30]
[398272302,1765488912033,-569.38,0.00040999,30]
[398272303,1765488912096,-569.38,0.00040999,30]
[398272304,1765488912161,-569.38,0.00040999,30]
[398272305,1765488912227,-569.38,0.00040999,30]
[398272306,1765488912291,-569.38,0.00040999,30]
[398272307,1765488912353,-569.38,0.00040999,30]
[398272308,1765488912428,-569.58,0.00040999,30]
[398272309,1765488912500,-3897.47,0.00040999,30]
[398272310,1765488912559,-3897.47,0.00040999,30]
[398272311,1765488912621,-3897.47,0.00040999,30]
[398272312,1765488912680,-3897.47,0.00040999,30]
[398272313,1765488912740,-3897.47,0.00040999,30]
[398272314,1765488912799,-3897.47,0.00040999,30]
[398272315,1765488912860,-3897.47,0.00040999,30]
[398272316,1765488912919,-3897.49254863,0.00040999,30]
[398272317,1765488912977,-4734.83,0.00040999,30]
[398272318,1765488913039,-4734.83,0.00040999,30]
[398272319,1765488913098,-4734.83,0.00040999,30]
[398272320,1765488913161,-4734.83,0.00040999,30]
[398272321,1765488913224,-4734.83,0.00040999,30]
[398272322,1765488913294,-4734.83,0.00040999,30]
[398272323,1765488913362,-4734.86362335,0.00040999,30]
[398272324,1765488913422,-444.71997537,0.00040999,30]
[398272325,1765488913484,-444.71997537,0.00040999,30]
[398272326,1765488913547,-444.71997537,0.00040999,30]
[398272327,1765488913607,-444.71997537,0.00040999,30]
[398272328,1765488913666,-444.71997537,0.00040999,30]
[398272329,1765488913723,-444.71997537,0.00040999,30]
[398272330,1765488913782,-444.72313345,0.00040999,30]
[398272331,1765488913846,-50000.0,0.00041,32]
[398272332,1765488913906,-50000.0,0.00041,41]
[398272333,1765488913965,-1443224.37188667,0.00041,30]
[398272334,1765488914026,-178.62845,0.00041,120]
[398272335,1765488914087,-442.91534662,0.00041,120]
[398272336,1765488914150,-500.0,0.00041,120]
[398272337,1765488914210,-500.0,0.00041,120]
[398272338,1765488914268,-3177.0,0.00041,120]
[398272339,1765488914327,-10000.0,0.00041,30]
[398272340,1765488914388,-200000.0,0.00041,30]
[398272341,1765488914448,-100000.00000001,0.00041,90]
[398272342,1765488914507,-1450.91,0.00041,30]
[398272343,1765488914564,-204.20678025,0.00041,120]
[398272344,1765488914623,-38363.64020093,0.00041,30]
[398272345,1765488914679,-151.0,0.00041,120]
[398272346,1765488914736,-151.0,0.00041,120]
[398272347,1765488914796,-151.0,0.00041,120]
[398272348,1765488914857,-151.0,0.00041,120]
[398272349,1765488914917,-151.0,0.00041,120]
[398272350,1765488914976,-151.0,0.00041,120]
[398272351,1765488915038,-431.4,0.00041,30]
[398272352,1765488915096,-151.0,0.00041,120]
[398272353,1765488915156,-208.703674,0.00041,120]
[398272354,1765488915216,-151.0,0.00041,120]
[398272355,1765488915275,-151.0,0.00041,120]
[398272356,1765488915334,-172.50222,0.00041,120]
[398272357,1765488915396,-151.0,0.00041,30]
[398272358,1765488915455,-151.0,0.00041,30]
[398272359,1765488915514,-151.0,0.00041,30]
[398272360,1765488915573,-151.0,0.00041,120]
[398272361,1765488915633,-151.0,0.00041,120]
[398272362,1765488915691,-229.89838,0.00041,120]
[398272363,1765488915749,-245.062125,0.00041,30]
[398272364,1765488915808,-151.0,0.00041,120]
[398272365,1765488915866,-151.0,0.00041,120]
[398272366,1765488915924,-10234.28,0.00041004,10]
[398272367,1765488915983,-151.0,0.00041068,120]
[398272368,1765488916042,-151.0,0.00041068,120]
[398272369,1765488916102,-151.0,0.00041068,120]
[398272370,1765488916162,-263.038516,0.00041068,120]
[398272371,1765488916223,-1000.0,0.00041094,120]
[398272372,1765488916282,-500.0,0.00041095,60]
[398272373,1765488916343,-500.0,0.00041095,60]
[398272374,1765488916404,-500.0,0.00041095,60]
[398272375,1765488916464,-524.89424203,0.00041095,60]
[398272376,1765488916525,-500.0,0.00041095,60]
[398272377,1765488916584,-390.01044343,0.00041095,60]
[398272378,1765488916646,-500.0,0.00041095,120]
[398272379,1765488916705,-500.0,0.00041095,60]
[398272380,1765488916766,-500.0,0.00041095,60]
[398272381,1765488916827,-500.0,0.00041095,60]
[398272382,1765488916887,-500.0,0.00041095,120]
[398272383,1765488916951,-500.0,0.00041095,120]
[398272384,1765488917020,-157.59033979,0.00041095,120]
[398272385,1765488917083,-500.0,0.00041095,120]
[398272386,1765488917147,-500.0,0.00041095,120]
[398272387,1765488917211,-500.0,0.00041095,120]
[398272388,1765488917279,-600.0,0.00041096,30]
[398272389,1765488917342,-500.0,0.00041096,33]
[398272390,1765488917405,-240.78,0.00041096,120]
[398272391,1765488917466,-267.0,0.00041096,30]
[398272392,1765488917527,-1000.0,0.00041096,30]
[398272393,1765488917746,-1034.0,0.00041096,30]
[398272394,1765488917806,-500.0,0.00041096,30]
[398272395,1765488917865,-176.0,0.00041096,30]
[398272396,1765488917927,-150.0,0.00041096,30]
[398272397,1765488917991,-500.0,0.00041096,30]
[398272398,1765488918051,-1000.0,0.00041096,13]
[398272399,1765488918114,-604.0,0.00041096,120]
[398272400,1765488918175,-975.56133402,0.00041105,28]
[398272401,1765488918236,-614.38300156,0.00041233,30]
[398272402,1765488918301,-500.0,0.00041233,30]
[398272403,1765488918366,-1000.0,0.00041233,13]
[398272404,1765488918429,-604.0,0.00041233,120]
[398272405,1765488918490,-1074.0,0.00041271,30]
[398272406,1765488918552,-7443.07456401,0.00041302,120]
[398272407,1765488918613,-157.09902981,0.00041304,120]
[398272408,1765488918673,-154.93216666,0.00041346,30]
[398272409,1765488918734,-975.56133402,0.00041351,28]
[398272410,1765488918796,-500.0,0.0004137,30]
[398272411,1765488918859,-1000.0,0.0004137,13]
[398272412,1765488918922,-604.0,0.0004137,120]
[398272413,1765488918985,-525.23595691,0.00041397,120]
[398272414,1765488919053,-9999.0,0.00041398,120]
[398272415,1765488919112,-49736.66391609,0.00041401,30]
[398272416,1765488919173,-1420.77755628,0.0004145,120]
[398272417,1765488919235,-955.940512,0.000415,60]
[398272418,1765488919296,-3005.95966074,0.000415,60]
[398272419,1765488919357,-1137.81854,0.000415,60]
[398272420,1765488919418,-300.0,0.000415,120]
[398272421,1765488919484,-66256.11946505,0.000415,120]
[398272422,1765488919548,-500.0,0.00041507,30]
[398272423,1765488919609,-1000.0,0.00041507,13]
[398272424,1765488919669,-604.0,0.00041507,120]
[398272425,1765488919730,-29310.80852461,0.00041598,34]
[398272426,1765488919790,-840032.9057,0.00041598,30]
[398272427,1765488919851,-975.56133402,0.00041598,28]
[398272428,1765488919913,-151.0,0.00041598,120]
[398272429,1765488919988,-151.0,0.00041598,30]
[398272430,1765488920070,-208.2657319,0.000416,30]
[398272431,1765488920142,-1000.0,0.00041638,120]
[398272432,1765488920211,-1000.0,0.00041638,120]
[398272433,1765488920275,-1000.0,0.00041638,120]
[398272434,1765488920336,-704.53766916,0.00041638,120]
[398272435,1765488920401,-1006.90338905,0.00041643,31]
[398272436,1765488920464,-511.69,0.00041643,120]
[398272437,1765488920525,-150.0,0.00041643,60]
[398272438,1765488920587,-1000.0,0.00041643,120]
[398272439,1765488920650,-500.0,0.00041643,120]
[398272440,1765488920711,-500.0,0.00041643,120]
[398272441,1765488920778,-500.0,0.00041643,120]
[398272442,1765488920840,-594.01625544,0.00041643,120]
[398272443,1765488920908,-150.0,0.00041643,60]
[398272444,1765488920971,-300.0,0.00041643,120]
[398272445,1765488921034,-700.0,0.00041643,120]
[398272446,1765488921097,-150.0,0.00041643,60]
[398272447,1765488921159,-400.0,0.00041643,14]
[398272448,1765488921222,-501.84722159,0.00041643,120]
[398272449,1765488921284,-500.0,0.00041643,120]
[398272450,1765488921348,-500.0,0.00041643,120]
[398272451,1765488921413,-469.95333641,0.00041643,120]
[398272452,1765488921474,-501.25386837,0.00041643,120]
[398272453,1765488921536,-500.0,0.00041643,120]
[398272454,1765488921600,-500.0,0.00041643,120]
[398272455,1765488921664,-500.0,0.00041643,120]
[398272456,1765488921726,-500.0,0.00041643,120]
[398272457,1765488921787,-500.0,0.00041643,120]
[398272458,1765488921853,-500.0,0.00041643,120]
[398272459,1765488921917,-500.0,0.00041643,120]
[398272460,1765488921979,-500.0,0.00041643,120]
[398272461,1765488922040,-500.0,0.00041643,120]
[398272462,1765488922105,-500.0,0.00041643,120]
[398272463,1765488922166,-500.0,0.00041643,120]
[398272464,1765488922228,-500.0,0.00041643,120]
[398272465,1765488922296,-500.0,0.00041643,120]
[398272466,1765488922358,-500.0,0.00041643,120]
[398272467,1765488922421,-500.0,0.00041643,120]
[398272468,1765488922494,-436.79684267,0.00041643,120]
[398272469,1765488922555,-500.0,0.00041643,120]
[398272470,1765488922615,-500.0,0.00041643,120]
[398272471,1765488922676,-500.0,0.00041643,120]
[398272472,1765488922738,-502.04922209,0.00041643,120]
[398272473,1765488922800,-308.14063139,0.00041643,120]
[398272474,1765488922862,-500.0,0.00041643,120]
[398272475,1765488922923,-500.0,0.00041643,120]
[398272476,1765488922986,-500.0,0.00041643,120]
[398272477,1765488923049,-500.71249817,0.00041643,120]
[398272478,1765488923113,-500.0,0.00041643,120]
[398272479,1765488923181,-501.43291765,0.00041643,120]
[398272480,1765488923255,-500.0,0.00041643,120]
[398272481,1765488923323,-500.0,0.00041643,120]
[398272482,1765488923392,-500.0,0.00041643,120]
[398272483,1765488923462,-501.05826951,0.00041643,120]
[398272484,1765488923527,-500.0,0.00041643,120]
[398272485,1765488923591,-500.0,0.00041643,120]
[398272486,1765488923660,-500.0,0.00041643,120]
[398272487,1765488923723,-500.0,0.00041643,120]
[398272488,1765488924008,-500.0,0.00041643,120]
[398272489,1765488924078,-500.0,0.00041643,120]
[398272490,1765488924143,-500.0,0.00041643,120]
[398272491,1765488924210,-500.0,0.00041643,120]
[398272492,1765488924274,-500.0,0.00041643,120]
[398272493,1765488924339,-500.0,0.00041643,120]
[398272494,1765488924407,-500.0,0.00041643,120]
[398272495,1765488924470,-642.57340995,0.00041643,120]
[398272496,1765488924533,-500.0,0.00041643,120]
[398272497,1765488924611,-502.42105948,0.00041643,120]
[398272498,1765488924683,-500.0,0.00041643,120]
[398272499,1765488924758,-501.65186916,0.00041643,120]
[398272500,1765488924831,-500.0,0.00041643,120]
[398272501,1765488924896,-500.0,0.00041643,11]
[398272502,1765488924971,-246.02106286,0.00041643,120]
[398272503,1765488925048,-500.0,0.00041643,120]
[398272504,1765488925122,-503.77150662,0.00041643,120]
[398272505,1765488925195,-500.0,0.00041643,120]
[398272506,1765488925268,-500.0,0.00041643,120]
[398272507,1765488925333,-500.0,0.00041643,120]
[398272508,1765488925400,-500.0,0.00041643,120]
[398272509,1765488925465,-500.0,0.00041643,120]
[398272510,1765488925530,-501.41241625,0.00041643,120]
[398272511,1765488925594,-500.0,0.00041643,120]
[398272512,1765488925658,-500.0,0.00041643,120]
[398272513,1765488925723,-500.0,0.00041643,120]
[398272514,1765488925800,-500.0,0.00041643,120]
[398272515,1765488925864,-500.0,0.00041643,120]
[398272516,1765488925929,-500.0,0.00041643,120]
[398272517,1765488925994,-500.0,0.00041643,120]
[398272518,1765488926059,-500.0,0.00041643,120]
[398272519,1765488926124,-547.45262823,0.00041643,120]
[398272520,1765488926203,-500.0,0.00041643,120]
[398272521,1765488926275,-500.0,0.00041643,120]
[398272522,1765488926342,-500.36196098,0.00041643,120]
[398272523,1765488926411,-500.0,0.00041643,120]
[398272524,1765488926476,-500.0,0.00041643,120]
[398272525,1765488926542,-503.18326896,0.00041643,120]
[398272526,1765488926606,-500.0,0.00041643,120]
[398272527,1765488926677,-500.0,0.00041643,120]
[398272528,1765488926744,-500.0,0.00041643,120]
[398272529,1765488926808,-501.44901673,0.00041643,120]
[398272530,1765488926874,-500.0,0.00041643,120]
[398272531,1765488926957,-500.0,0.00041643,120]
[398272532,1765488927023,-500.0,0.00041643,120]
[398272533,1765488927086,-500.0,0.00041643,120]
[398272534,1765488927153,-500.0,0.00041643,120]
[398272535,1765488927222,-500.0,0.00041643,120]
[398272537,1765488927287,-519.75533213,0.00041643,120]
[398272538,1765488927352,-500.98777185,0.00041643,120]
[398272539,1765488927416,-503.99050972,0.00041643,120]
[398272540,1765488927479,-500.0,0.00041643,120]
[398272541,1765488927542,-500.0,0.00041643,120]
[398272542,1765488927604,-500.0,0.00041643,120]
[398272543,1765488927666,-500.0,0.00041643,120]
[398272545,1765488927728,-500.0,0.00041643,120]
[398272546,1765488927791,-500.0,0.00041643,120]
[398272547,1765488927857,-500.0,0.00041643,120]
[398272548,1765488927919,-500.0,0.00041643,120]
[398272549,1765488927984,-544.44089405,0.00041643,120]
[398272550,1765488928046,-500.0,0.00041643,120]
[398272551,1765488928113,-501.74940586,0.00041643,120]
[398272552,1765488928180,-500.0,0.00041643,120]
[398272553,1765488928243,-500.0,0.00041643,120]
[398272554,1765488928318,-500.0,0.00041643,120]
[398272555,1765488928391,-500.0,0.00041643,120]
[398272556,1765488928456,-500.0,0.00041643,120]
[398272558,1765488928520,-500.0,0.00041643,120]
[398272559,1765488928582,-500.0,0.00041643,120]
[398272560,1765488928644,-505.26442086,0.00041643,120]
[398272561,1765488928704,-500.0,0.00041643,120]
[398272562,1765488928766,-509.56674284,0.00041643,120]
[398272563,1765488928830,-500.0,0.00041643,120]
[398272564,1765488928893,-500.0,0.00041643,120]
[398272565,1765488928956,-500.0,0.00041643,120]
[398272566,1765488929021,-529.14588832,0.00041643,120]
[398272567,1765488929088,-500.0,0.00041643,120]
[398272568,1765488929153,-500.0,0.00041643,120]
[398272569,1765488929218,-500.0,0.00041643,120]
[398272570,1765488929289,-500.0,0.00041643,120]
[398272571,1765488929359,-500.0,0.00041643,120]
[398272572,1765488929421,-500.0,0.00041643,120]
[398272573,1765488929482,-500.0,0.00041643,120]
[398272574,1765488929541,-500.0,0.00041643,120]
[398272575,1765488929602,-500.0,0.00041643,120]
[398272576,1765488929663,-500.0,0.00041643,120]
[398272577,1765488929723,-500.0,0.00041643,120]
[398272578,1765488929782,-500.0,0.00041643,120]
[398272579,1765488929843,-500.0,0.00041643,120]
[398272580,1765488929903,-500.0,0.00041643,120]
[398272581,1765488929964,-516.83733945,0.00041643,120]
[398272582,1765488930025,-500.0,0.00041643,120]
[398272583,1765488930086,-301.69134657,0.00041643,120]
[398272584,1765488930149,-500.0,0.00041643,120]
[398272585,1765488930355,-500.0,0.00041643,120]
[398272586,1765488930418,-500.0,0.00041643,120]
[398272587,1765488930480,-500.0,0.00041643,120]
[398272588,1765488930542,-500.0,0.00041643,120]
[398272589,1765488930602,-500.0,0.00041643,120]
[398272590,1765488930664,-500.0,0.00041643,120]
[398272591,1765488930725,-500.0,0.00041643,120]
[398272592,1765488930783,-500.0,0.00041643,120]
[398272593,1765488930843,-500.0,0.00041643,120]
[398272594,1765488930901,-500.0,0.00041643,120]
[398272595,1765488930964,-500.0,0.00041643,120]
[398272596,1765488931029,-500.0,0.00041643,120]
[398272597,1765488931091,-500.0,0.00041643,120]
[398272598,1765488931159,-599.71347649,0.00041643,120]
[398272599,1765488931224,-500.0,0.00041643,120]
[398272600,1765488931285,-500.0,0.00041643,120]
[398272601,1765488931352,-500.0,0.00041643,120]
[398272602,1765488931414,-500.0,0.00041643,120]
[398272603,1765488931472,-255.56579853,0.00041643,120]
[398272604,1765488931529,-500.0,0.00041643,120]
[398272605,1765488931586,-500.0,0.00041643,120]
[398272606,1765488931645,-500.0,0.00041643,120]
[398272607,1765488931702,-500.0,0.00041643,120]
[398272608,1765488931759,-500.0,0.00041643,120]
[398272609,1765488931817,-500.0,0.00041643,120]
[398272610,1765488931873,-500.0,0.00041643,120]
[398272611,1765488931930,-536.02620099,0.00041643,120]
[398272612,1765488931991,-500.0,0.00041643,120]
[398272613,1765488932049,-500.0,0.00041643,120]
[398272614,1765488932108,-500.0,0.00041643,120]
[398272615,1765488932165,-500.0,0.00041643,60]
[398272616,1765488932224,-428.79008161,0.00041643,120]
[398272617,1765488932283,-500.0,0.00041643,60]
[398272618,1765488932349,-500.0,0.00041643,60]
[398272619,1765488932421,-500.0,0.00041643,60]
[398272620,1765488932490,-500.0,0.00041643,60]
[398272621,1765488932561,-500.0,0.00041643,60]
[398272622,1765488932631,-500.0,0.00041643,60]
[398272623,1765488932698,-500.0,0.00041643,60]
[398272624,1765488932756,-500.0,0.00041643,120]
[398272625,1765488932814,-500.0,0.00041643,60]
[398272626,1765488932872,-507.03099784,0.00041643,60]
[398272627,1765488932931,-500.0,0.00041643,120]
[398272628,1765488932991,-500.0,0.00041643,120]
[398272629,1765488933051,-500.0,0.00041643,120]
[398272630,1765488933110,-500.0,0.00041643,120]
[398272631,1765488933168,-500.0,0.00041643,120]
[398272632,1765488933226,-500.33580508,0.00041643,120]
[398272633,1765488933286,-500.0,0.00041643,120]
[398272634,1765488933347,-500.0,0.00041643,120]
[398272635,1765488933413,-500.0,0.00041643,120]
[398272636,1765488933473,-500.0,0.00041643,120]
[398272637,1765488933536,-500.0,0.00041643,120]
[398272638,1765488933599,-500.0,0.00041643,120]
[398272639,1765488933661,-500.0,0.00041643,120]
[398272640,1765488933721,-500.0,0.00041643,120]
[398272641,1765488933781,-500.0,0.00041643,120]
[398272642,1765488933842,-501.98177125,0.00041643,120]
[398272643,1765488933907,-500.0,0.00041643,120]
[398272644,1765488933968,-500.0,0.00041643,120]
[398272645,1765488934030,-500.0,0.00041643,120]
[398272646,1765488934089,-500.0,0.00041643,120]
[398272647,1765488934148,-500.0,0.00041643,120]
[398272648,1765488934208,-500.0,0.00041643,120]
[398272649,1765488934269,-500.0,0.00041643,120]
[398272650,1765488934330,-500.0,0.00041643,120]
[398272651,1765488934391,-500.0,0.00041643,120]
[398272652,1765488934451,-500.0,0.00041643,120]
[398272653,1765488934511,-602.32138789,0.00041643,120]
[398272654,1765488934572,-500.0,0.00041643,120]
[398272655,1765488934639,-500.0,0.00041643,120]
[398272656,1765488934699,-500.0,0.00041643,120]
[398272657,1765488934755,-403.3598622,0.00041643,120]
[398272658,1765488934812,-500.0,0.00041643,120]
[398272659,1765488934870,-500.0,0.00041643,120]
[398272660,1765488934937,-500.0,0.00041643,120]
[398272661,1765488934998,-500.0,0.00041643,120]
[398272662,1765488935067,-500.0,0.00041643,120]
[398272663,1765488935129,-500.0,0.00041643,120]
[398272664,1765488935188,-500.0,0.00041643,120]
[398272665,1765488935246,-500.0,0.00041643,120]
[398272666,1765488935305,-298.37397821,0.00041643,120]
[398272667,1765488935365,-500.0,0.00041643,120]
[398272668,1765488935426,-500.0,0.00041643,120]
[398272669,1765488935483,-500.0,0.00041643,120]
[398272670,1765488935540,-500.0,0.00041643,120]
[398272671,1765488935597,-500.0,0.00041643,120]
[398272672,1765488935655,-500.0,0.00041643,120]
[398272673,1765488935712,-500.0,0.00041643,120]
[398272674,1765488935772,-500.0,0.00041643,120]
[398272675,1765488935841,-500.0,0.00041643,120]
[398272676,1765488935901,-447.52533685,0.00041643,120]
[398272677,1765488935960,-500.0,0.00041643,120]
[398272678,1765488936024,-500.0,0.00041643,120]
[398272679,1765488936088,-500.0,0.00041643,120]
[398272680,1765488936303,-500.0,0.00041643,120]
[398272681,1765488936363,-500.0,0.00041643,120]
[398272682,1765488936424,-500.0,0.00041643,120]
[398272683,1765488936485,-500.0,0.00041643,120]
[398272684,1765488936546,-500.0,0.00041643,120]
[398272685,1765488936604,-500.0,0.00041643,120]
[398272686,1765488936666,-500.0,0.00041643,120]
[398272687,1765488936723,-501.64511858,0.00041643,120]
[398272688,1765488936783,-500.0,0.00041643,120]
[398272689,1765488936841,-247.86442894,0.00041643,120]
[398272690,1765488936900,-500.0,0.00041643,120]
[398272691,1765488936967,-500.0,0.00041643,120]
[398272692,1765488937039,-500.0,0.00041643,120]
[398272693,1765488937116,-500.0,0.00041643,120]
[398272694,1765488937184,-500.0,0.00041643,120]
[398272695,1765488937256,-512.69531751,0.00041643,120]
[398272696,1765488937321,-500.0,0.00041643,120]
[398272697,1765488937384,-500.0,0.00041643,120]
[398272698,1765488937445,-500.0,0.00041643,120]
[398272699,1765488937509,-500.0,0.00041643,120]
[398272700,1765488937569,-500.0,0.00041643,120]
[398272701,1765488937629,-500.0,0.00041643,120]
[398272702,1765488937688,-508.6611624,0.00041643,120]
[398272703,1765488937748,-500.0,0.00041643,120]
[398272704,1765488937816,-500.0,0.00041643,120]
[398272705,1765488937888,-500.0,0.00041643,120]
[398272706,1765488937961,-500.0,0.00041643,120]
[398272707,1765488938027,-500.0,0.00041643,120]
[398272708,1765488938094,-500.0,0.00041643,120]
[398272709,1765488938160,-578.47248123,0.00041643,120]
[398272710,1765488938224,-502.74870501,0.00041643,120]
[398272711,1765488938289,-401.77687641,0.00041643,120]
[398272712,1765488938365,-500.0,0.00041643,120]
[398272713,1765488938431,-500.0,0.00041643,120]
[398272714,1765488938496,-500.0,0.00041643,120]
[398272715,1765488938562,-500.0,0.00041643,120]
[398272716,1765488938627,-500.0,0.00041643,120]
[398272717,1765488938692,-500.0,0.00041643,120]
[398272718,1765488938760,-500.0,0.00041643,120]
[398272719,1765488938825,-500.0,0.00041643,120]
[398272720,1765488938890,-500.0,0.00041643,120]
[398272721,1765488938957,-500.0,0.00041643,120]
[398272722,1765488939023,-500.0,0.00041643,120]
[398272723,1765488939091,-500.0,0.00041643,120]
[398272724,1765488939164,-500.0,0.00041643,120]
[398272725,1765488939238,-500.0,0.00041643,120]
[398272726,1765488939313,-500.0,0.00041643,120]
[398272727,1765488939380,-500.0,0.00041643,120]
[398272728,1765488939445,-500.0,0.00041643,120]
[398272729,1765488939510,-500.0,0.00041643,120]
[398272730,1765488939575,-500.0,0.00041643,120]
[398272731,1765488939637,-500.0,0.00041643,120]
[398272732,1765488939700,-500.0,0.00041643,120]
[398272733,1765488939764,-500.0,0.00041643,120]